[Event "Titled Tuesday Blitz February 01 B 2022"]
[White "Kobalia, Mikhail"]
[Black "Riehle, Marco"]
[WhiteFideId "4119150"]
[BlackFideId "12904392"]
[WhiteElo "2667"]
[BlackElo "2462"]
[Result "1/2-1/2"]
[Round "07"]
[TimeControl "180+1"]
[Date "2022.02.01"]
[WhiteClock "0:00:05"]
[BlackClock "0:00:39"]

1. e4 {[%clk 0:03:00]}  e5 {[%clk 0:02:59]} 2. Nf3 {[%clk 0:03:00]}  Nf6 {[%clk 0:02:58]} 3. Nxe5 {[%clk 0:02:53]}  Nxe4 {[%clk 0:02:59]} 4. Qe2 {[%clk 0:02:50]}  Qe7 {[%clk 0:02:58]} 5. Qxe4 {[%clk 0:02:46]}  d6 {[%clk 0:02:58]} 6. d4 {[%clk 0:02:45]}  dxe5 {[%clk 0:02:59]} 7. Qxe5 {[%clk 0:02:38]}  Qxe5+ {[%clk 0:02:58]} 8. dxe5 {[%clk 0:02:38]}  Bf5 {[%clk 0:02:59]} 9. Nc3 {[%clk 0:02:36]}  Nc6 {[%clk 0:02:58]} 10. Be3 {[%clk 0:02:34]}  O-O-O {[%clk 0:02:57]} 11. Bg5 {[%clk 0:01:38]}  Rd7 {[%clk 0:02:45]} 12. Bb5 {[%clk 0:01:36]}  Bxc2 {[%clk 0:02:37]} 13. O-O {[%clk 0:01:35]}  Bd3 {[%clk 0:02:32]} 14. Bxc6 {[%clk 0:01:34]}  bxc6 {[%clk 0:02:33]} 15. Rfe1 {[%clk 0:01:33]}  c5 {[%clk 0:02:27]} 16. Rac1 {[%clk 0:01:23]}  c4 {[%clk 0:02:26]} 17. e6 {[%clk 0:01:20]}  fxe6 {[%clk 0:02:25]} 18. Rxe6 {[%clk 0:01:21]}  Bc5 {[%clk 0:02:13]} 19. Be3 {[%clk 0:01:18]}  Bb6 {[%clk 0:02:13]} 20. Re1 {[%clk 0:01:15]}  Kb7 {[%clk 0:02:08]} 21. h3 {[%clk 0:01:13]}  Rf8 {[%clk 0:02:07]} 22. a3 {[%clk 0:01:09]}  Rf5 {[%clk 0:02:01]} 23. Bxb6 {[%clk 0:01:07]}  axb6 {[%clk 0:02:01]} 24. Re7 {[%clk 0:01:06]}  Rf7 {[%clk 0:02:01]} 25. Rxf7 {[%clk 0:01:05]}  Rxf7 {[%clk 0:02:02]} 26. f3 {[%clk 0:01:04]}  c6 {[%clk 0:01:41]} 27. Kf2 {[%clk 0:01:03]}  b5 {[%clk 0:01:41]} 28. Re8 {[%clk 0:01:02]}  Rd7 {[%clk 0:01:37]} 29. h4 {[%clk 0:00:53]}  h6 {[%clk 0:01:30]} 30. h5 {[%clk 0:00:51]}  Kb6 {[%clk 0:01:29]} 31. g4 {[%clk 0:00:48]}  Bc2 {[%clk 0:01:18]} 32. Re2 {[%clk 0:00:45]}  Bd3 {[%clk 0:01:18]} 33. Re6 {[%clk 0:00:44]}  Kc5 {[%clk 0:01:10]} 34. Ke3 {[%clk 0:00:38]}  Bc2 {[%clk 0:01:09]} 35. Re8 {[%clk 0:00:29]}  Rd3+ {[%clk 0:01:09]} 36. Ke2 {[%clk 0:00:27]}  Rd7 {[%clk 0:01:08]} 37. f4 {[%clk 0:00:22]}  Rd3 {[%clk 0:01:02]} 38. Re7 {[%clk 0:00:16]}  Rh3 {[%clk 0:01:00]} 39. Rxg7 {[%clk 0:00:11]}  Bd3+ {[%clk 0:00:59]} 40. Kf2 {[%clk 0:00:09]}  Rh2+ {[%clk 0:00:59]} 41. Ke3 {[%clk 0:00:09]}  Rxb2 {[%clk 0:00:59]} 42. g5 {[%clk 0:00:09]}  hxg5 {[%clk 0:00:59]} 43. fxg5 {[%clk 0:00:09]}  Rc2 {[%clk 0:00:59]} 44. Ne4+ {[%clk 0:00:07]}  Bxe4 {[%clk 0:00:56]} 45. Kxe4 {[%clk 0:00:07]}  Re2+ {[%clk 0:00:57]} 46. Kf3 {[%clk 0:00:07]}  Rh2 {[%clk 0:00:57]} 47. h6 {[%clk 0:00:07]}  c3 {[%clk 0:00:58]} 48. Re7 {[%clk 0:00:06]}  c2 {[%clk 0:00:52]} 49. Re1 {[%clk 0:00:05]}  Kc4 {[%clk 0:00:53]} 50. Kg3 {[%clk 0:00:05]}  Rh5 {[%clk 0:00:49]} 51. Kg4 {[%clk 0:00:05]}  Rh2 {[%clk 0:00:50]} 52. Kg3 {[%clk 0:00:05]}  Rh5 {[%clk 0:00:39]} 53. Kg4 {[%clk 0:00:05]}  Rh2 {[%clk 0:00:39]} 54. Kg3 {[%clk 0:00:05]} 1/2-1/2


[Site "https://www.chess.com"]

[Event "Titled Tuesday Blitz February 01 B 2022"]
[White "Lysyj, Igor"]
[Black "Kollars, Dmitrij"]
[WhiteFideId "4150120"]
[BlackFideId "12909572"]
[WhiteElo "2611"]
[BlackElo "2584"]
[Result "0-1"]
[Round "07"]
[TimeControl "180+1"]
[Date "2022.02.01"]
[WhiteClock "0:00:18"]
[BlackClock "0:00:22"]

1. d4 {[%clk 0:02:09]}  Nf6 {[%clk 0:02:59]} 2. Nf3 {[%clk 0:02:08]}  e6 {[%clk 0:02:57]} 3. e3 {[%clk 0:02:08]}  b6 {[%clk 0:02:56]} 4. Bd3 {[%clk 0:02:05]}  Bb7 {[%clk 0:02:57]} 5. O-O {[%clk 0:02:05]}  d5 {[%clk 0:02:57]} 6. b3 {[%clk 0:02:04]}  Bd6 {[%clk 0:02:57]} 7. Bb2 {[%clk 0:02:03]}  O-O {[%clk 0:02:57]} 8. Nbd2 {[%clk 0:02:03]}  Nbd7 {[%clk 0:02:57]} 9. c4 {[%clk 0:02:03]}  Re8 {[%clk 0:02:55]} 10. cxd5 {[%clk 0:02:00]}  exd5 {[%clk 0:02:55]} 11. Qc2 {[%clk 0:01:57]}  Qe7 {[%clk 0:02:48]} 12. Rac1 {[%clk 0:01:57]}  Ne4 {[%clk 0:02:39]} 13. Rfe1 {[%clk 0:01:53]}  h5 {[%clk 0:02:33]} 14. Bb5 {[%clk 0:01:41]}  c6 {[%clk 0:02:08]} 15. Bf1 {[%clk 0:01:40]}  Rac8 {[%clk 0:01:58]} 16. Nxe4 {[%clk 0:01:34]}  dxe4 {[%clk 0:01:58]} 17. Nd2 {[%clk 0:01:34]}  Nf6 {[%clk 0:01:56]} 18. g3 {[%clk 0:01:34]}  b5 {[%clk 0:01:48]} 19. Bh3 {[%clk 0:01:31]}  Rc7 {[%clk 0:01:47]} 20. a4 {[%clk 0:01:30]}  a6 {[%clk 0:01:46]} 21. Bc3 {[%clk 0:01:28]}  Bc8 {[%clk 0:01:45]} 22. Bg2 {[%clk 0:01:27]}  Bf5 {[%clk 0:01:39]} 23. Ba5 {[%clk 0:01:26]}  Rcc8 {[%clk 0:01:39]} 24. axb5 {[%clk 0:01:20]}  axb5 {[%clk 0:01:32]} 25. Ra1 {[%clk 0:01:18]}  Qe6 {[%clk 0:01:31]} 26. Bc3 {[%clk 0:01:16]}  Bh3 {[%clk 0:01:29]} 27. Bh1 {[%clk 0:01:15]}  h4 {[%clk 0:01:29]} 28. Qd1 {[%clk 0:01:11]}  Bg4 {[%clk 0:01:28]} 29. Qb1 {[%clk 0:01:10]}  Nd5 {[%clk 0:01:10]} 30. Bb2 {[%clk 0:01:07]}  Bf5 {[%clk 0:01:10]} 31. Ra6 {[%clk 0:01:05]}  Nb4 {[%clk 0:01:10]} 32. Ra7 {[%clk 0:01:04]}  Bb8 {[%clk 0:01:09]} 33. Rb7 {[%clk 0:01:01]}  Nd3 {[%clk 0:01:00]} 34. Rf1 {[%clk 0:01:01]}  Qh6 {[%clk 0:00:54]} 35. Rxb8 {[%clk 0:00:39]}  Rxb8 {[%clk 0:00:53]} 36. Bc3 {[%clk 0:00:38]}  hxg3 {[%clk 0:00:51]} 37. hxg3 {[%clk 0:00:38]}  b4 {[%clk 0:00:36]} 38. Ba1 {[%clk 0:00:37]}  Ra8 {[%clk 0:00:33]} 39. Qc2 {[%clk 0:00:37]}  Re6 {[%clk 0:00:28]} 40. d5 {[%clk 0:00:31]}  cxd5 {[%clk 0:00:26]} 41. Qc7 {[%clk 0:00:31]}  Qh5 {[%clk 0:00:24]} 42. Qb7 {[%clk 0:00:26]}  Rf8 {[%clk 0:00:23]} 43. Rb1 {[%clk 0:00:19]}  Rh6 {[%clk 0:00:22]} 44. Bg2 {[%clk 0:00:18]}  Qe2 {[%clk 0:00:22]} 0-1


[Site "https://www.chess.com"]

[Event "Titled Tuesday Blitz February 01 B 2022"]
[White "Nazaretyan, Tigran"]
[Black "Kamsky, Gata"]
[WhiteFideId "24162345"]
[BlackFideId "2000024"]
[WhiteElo "2192"]
[BlackElo "2645"]
[Result "1/2-1/2"]
[Round "07"]
[TimeControl "180+1"]
[Date "2022.02.01"]
[WhiteClock "0:00:19"]
[BlackClock "0:00:19"]

1. d4 {[%clk 0:03:00]}  d5 {[%clk 0:02:57]} 2. c4 {[%clk 0:03:00]}  c6 {[%clk 0:02:51]} 3. Nf3 {[%clk 0:03:00]}  Nf6 {[%clk 0:02:49]} 4. Nc3 {[%clk 0:03:01]}  a6 {[%clk 0:02:44]} 5. e3 {[%clk 0:03:00]}  Bf5 {[%clk 0:02:42]} 6. Bd3 {[%clk 0:02:53]}  Bxd3 {[%clk 0:02:40]} 7. Qxd3 {[%clk 0:02:54]}  e6 {[%clk 0:02:40]} 8. a3 {[%clk 0:02:49]}  Be7 {[%clk 0:02:38]} 9. e4 {[%clk 0:02:49]}  dxe4 {[%clk 0:02:37]} 10. Nxe4 {[%clk 0:02:49]}  Nbd7 {[%clk 0:02:36]} 11. O-O {[%clk 0:02:48]}  O-O {[%clk 0:02:35]} 12. Rd1 {[%clk 0:02:46]}  Nxe4 {[%clk 0:02:29]} 13. Qxe4 {[%clk 0:02:46]}  Nf6 {[%clk 0:02:21]} 14. Qc2 {[%clk 0:02:45]}  Qc7 {[%clk 0:02:08]} 15. Bg5 {[%clk 0:02:32]}  Rfd8 {[%clk 0:02:06]} 16. Rd2 {[%clk 0:02:26]}  h6 {[%clk 0:02:01]} 17. Bh4 {[%clk 0:02:25]}  Nh5 {[%clk 0:01:56]} 18. Bxe7 {[%clk 0:02:15]}  Qxe7 {[%clk 0:01:56]} 19. Re1 {[%clk 0:02:12]}  Nf6 {[%clk 0:01:54]} 20. h3 {[%clk 0:02:08]}  Rd6 {[%clk 0:01:53]} 21. Rde2 {[%clk 0:01:58]}  Rad8 {[%clk 0:01:52]} 22. Qb3 {[%clk 0:01:58]}  Qc7 {[%clk 0:01:49]} 23. Qb4 {[%clk 0:01:55]}  R6d7 {[%clk 0:01:41]} 24. Re3 {[%clk 0:01:48]}  Ne8 {[%clk 0:01:27]} 25. R3e2 {[%clk 0:01:43]}  Nd6 {[%clk 0:01:22]} 26. g4 {[%clk 0:01:21]}  Ne8 {[%clk 0:01:20]} 27. a4 {[%clk 0:01:16]}  Nf6 {[%clk 0:01:15]} 28. Kg2 {[%clk 0:01:14]}  Qf4 {[%clk 0:01:13]} 29. Qd2 {[%clk 0:01:12]}  Qxd2 {[%clk 0:01:10]} 30. Rxd2 {[%clk 0:01:12]}  g5 {[%clk 0:01:00]} 31. b4 {[%clk 0:01:08]}  Nh7 {[%clk 0:00:57]} 32. Rb1 {[%clk 0:01:02]}  Nf8 {[%clk 0:00:57]} 33. b5 {[%clk 0:01:02]}  axb5 {[%clk 0:00:56]} 34. axb5 {[%clk 0:01:02]}  Ng6 {[%clk 0:00:54]} 35. bxc6 {[%clk 0:00:56]}  bxc6 {[%clk 0:00:53]} 36. Kg3 {[%clk 0:00:52]}  Ra7 {[%clk 0:00:49]} 37. Rb3 {[%clk 0:00:50]}  Ra4 {[%clk 0:00:48]} 38. Rc2 {[%clk 0:00:48]}  Rda8 {[%clk 0:00:46]} 39. h4 {[%clk 0:00:48]}  Ra3 {[%clk 0:00:46]} 40. Rcc3 {[%clk 0:00:43]}  Rxb3 {[%clk 0:00:45]} 41. Rxb3 {[%clk 0:00:43]}  gxh4+ {[%clk 0:00:39]} 42. Nxh4 {[%clk 0:00:43]}  Nxh4 {[%clk 0:00:39]} 43. Kxh4 {[%clk 0:00:43]}  Ra4 {[%clk 0:00:39]} 44. Rc3 {[%clk 0:00:41]}  Ra2 {[%clk 0:00:39]} 45. f3 {[%clk 0:00:29]}  Rd2 {[%clk 0:00:38]} 46. d5 {[%clk 0:00:27]}  exd5 {[%clk 0:00:37]} 47. cxd5 {[%clk 0:00:27]}  cxd5 {[%clk 0:00:37]} 48. Kg3 {[%clk 0:00:26]}  Kg7 {[%clk 0:00:37]} 49. Kf4 {[%clk 0:00:26]}  Rd1 {[%clk 0:00:26]} 50. Rc6 {[%clk 0:00:25]}  Rd3 {[%clk 0:00:24]} 51. Rd6 {[%clk 0:00:25]}  f6 {[%clk 0:00:22]} 52. Rd7+ {[%clk 0:00:23]}  Kg6 {[%clk 0:00:23]} 53. Rd6 {[%clk 0:00:23]}  Rd1 {[%clk 0:00:21]} 54. Ke3 {[%clk 0:00:18]}  Kg5 {[%clk 0:00:20]} 55. Ke2 {[%clk 0:00:17]}  Rd4 {[%clk 0:00:20]} 56. Ke3 {[%clk 0:00:18]}  Rd1 {[%clk 0:00:19]} 57. Ke2 {[%clk 0:00:18]}  Rd4 {[%clk 0:00:19]} 58. Ke3 {[%clk 0:00:19]}  Rd1 {[%clk 0:00:19]} 1/2-1/2


[Site "https://www.chess.com"]

[Event "Titled Tuesday Blitz February 01 B 2022"]
[White "Paravyan, David"]
[Black "Golubka, Petro"]
[WhiteFideId "4194985"]
[BlackFideId "14114224"]
[WhiteElo "2569"]
[BlackElo "2392"]
[Result "1-0"]
[Round "07"]
[TimeControl "180+1"]
[Date "2022.02.01"]
[WhiteClock "0:00:05"]
[BlackClock "0:00:10"]

1. e4 {[%clk 0:03:00]}  a6 {[%clk 0:02:27]} 2. d4 {[%clk 0:02:59]}  h6 {[%clk 0:02:26]} 3. Nf3 {[%clk 0:02:59]}  b6 {[%clk 0:02:25]} 4. Bd3 {[%clk 0:02:59]}  Bb7 {[%clk 0:02:25]} 5. O-O {[%clk 0:03:00]}  e6 {[%clk 0:02:25]} 6. Re1 {[%clk 0:03:00]}  d6 {[%clk 0:02:25]} 7. a4 {[%clk 0:03:00]}  Nd7 {[%clk 0:02:25]} 8. Nbd2 {[%clk 0:03:00]}  g5 {[%clk 0:02:25]} 9. d5 {[%clk 0:02:51]}  e5 {[%clk 0:02:24]} 10. Nc4 {[%clk 0:02:49]}  Bg7 {[%clk 0:01:57]} 11. Nfd2 {[%clk 0:02:46]}  Nc5 {[%clk 0:01:53]} 12. Be2 {[%clk 0:02:39]}  Nf6 {[%clk 0:01:51]} 13. Bf1 {[%clk 0:02:35]}  O-O {[%clk 0:01:50]} 14. b4 {[%clk 0:02:34]}  Ncd7 {[%clk 0:01:47]} 15. Ne3 {[%clk 0:02:34]}  c6 {[%clk 0:01:38]} 16. c4 {[%clk 0:02:32]}  a5 {[%clk 0:01:35]} 17. Ba3 {[%clk 0:02:26]}  axb4 {[%clk 0:01:33]} 18. Bxb4 {[%clk 0:02:27]}  Nc5 {[%clk 0:01:30]} 19. Nf5 {[%clk 0:02:24]}  cxd5 {[%clk 0:01:21]} 20. cxd5 {[%clk 0:02:23]}  Bc8 {[%clk 0:01:21]} 21. Nxg7 {[%clk 0:01:58]}  Kxg7 {[%clk 0:01:22]} 22. f3 {[%clk 0:01:58]}  Bd7 {[%clk 0:01:21]} 23. Bb5 {[%clk 0:01:52]}  Bxb5 {[%clk 0:01:20]} 24. axb5 {[%clk 0:01:53]}  Rxa1 {[%clk 0:01:12]} 25. Qxa1 {[%clk 0:01:54]}  Nd3 {[%clk 0:01:11]} 26. Rb1 {[%clk 0:01:54]}  Nxb4 {[%clk 0:01:03]} 27. Rxb4 {[%clk 0:01:55]}  Nd7 {[%clk 0:01:03]} 28. Rc4 {[%clk 0:01:28]}  Nc5 {[%clk 0:01:00]} 29. Nf1 {[%clk 0:01:28]}  Qa8 {[%clk 0:00:59]} 30. Rc1 {[%clk 0:01:06]}  Qe8 {[%clk 0:00:56]} 31. Ne3 {[%clk 0:01:00]}  Nb3 {[%clk 0:00:53]} 32. Nf5+ {[%clk 0:00:57]}  Kh7 {[%clk 0:00:50]} 33. Qa3 {[%clk 0:00:54]}  Nxc1 {[%clk 0:00:49]} 34. Qxd6 {[%clk 0:00:54]}  f6 {[%clk 0:00:45]} 35. Qc7+ {[%clk 0:00:53]}  Rf7 {[%clk 0:00:38]} 36. Qxc1 {[%clk 0:00:54]}  Qf8 {[%clk 0:00:25]} 37. d6 {[%clk 0:00:40]}  Qe8 {[%clk 0:00:25]} 38. Qc6 {[%clk 0:00:38]}  Qd8 {[%clk 0:00:26]} 39. h4 {[%clk 0:00:28]}  gxh4 {[%clk 0:00:25]} 40. Nxh4 {[%clk 0:00:26]}  f5 {[%clk 0:00:19]} 41. Nxf5 {[%clk 0:00:26]}  Qg5 {[%clk 0:00:19]} 42. d7 {[%clk 0:00:23]}  Rf8 {[%clk 0:00:19]} 43. Kf1 {[%clk 0:00:16]}  Rg8 {[%clk 0:00:18]} 44. g3 {[%clk 0:00:17]}  Rf8 {[%clk 0:00:17]} 45. Ke2 {[%clk 0:00:15]}  Rd8 {[%clk 0:00:16]} 46. Qxb6 {[%clk 0:00:14]}  Rxd7 {[%clk 0:00:15]} 47. Qe3 {[%clk 0:00:02]}  Qf6 {[%clk 0:00:14]} 48. g4 {[%clk 0:00:02]}  Qe6 {[%clk 0:00:13]} 49. Kf2 {[%clk 0:00:02]}  Rb7 {[%clk 0:00:12]} 50. Qd3 {[%clk 0:00:02]}  Rd7 {[%clk 0:00:12]} 51. Qc3 {[%clk 0:00:02]}  Qb6+ {[%clk 0:00:11]} 52. Qe3 {[%clk 0:00:02]}  Qe6 {[%clk 0:00:10]} 53. Kg3 {[%clk 0:00:02]}  Rb7 {[%clk 0:00:10]} 54. Qc5 {[%clk 0:00:03]}  Rd7 {[%clk 0:00:10]} 55. b6 {[%clk 0:00:02]}  Rb7 {[%clk 0:00:10]} 56. Nd6 {[%clk 0:00:03]}  Rd7 {[%clk 0:00:09]} 57. b7 {[%clk 0:00:03]}  Qf6 {[%clk 0:00:09]} 58. b8=Q {[%clk 0:00:03]}  Qf4+ {[%clk 0:00:09]} 59. Kg2 {[%clk 0:00:04]}  Qd2+ {[%clk 0:00:09]} 60. Qf2 {[%clk 0:00:05]}  Qxd6 {[%clk 0:00:09]} 61. Qxd6 {[%clk 0:00:05]}  Rxd6 {[%clk 0:00:10]} 62. Qa7+ {[%clk 0:00:05]} 1-0


[Site "https://www.chess.com"]

[Event "Titled Tuesday Blitz February 01 B 2022"]
[White "Postnikov, Daniil"]
[Black "Pakleza, Zbigniew"]
[WhiteFideId "4166329"]
[BlackFideId "1119290"]
[WhiteElo "2261"]
[BlackElo "2467"]
[Result "1-0"]
[Round "07"]
[TimeControl "180+1"]
[Date "2022.02.01"]
[WhiteClock "0:00:04"]
[BlackClock "0:00:05"]

1. e4 {[%clk 0:03:00]}  d6 {[%clk 0:02:59]} 2. Nc3 {[%clk 0:02:59]}  Nf6 {[%clk 0:02:59]} 3. g3 {[%clk 0:03:00]}  c6 {[%clk 0:02:57]} 4. Bg2 {[%clk 0:03:00]}  e5 {[%clk 0:02:55]} 5. Nge2 {[%clk 0:02:59]}  b5 {[%clk 0:02:55]} 6. a3 {[%clk 0:02:57]}  Be7 {[%clk 0:02:55]} 7. O-O {[%clk 0:02:56]}  O-O {[%clk 0:02:56]} 8. d3 {[%clk 0:02:56]}  Nbd7 {[%clk 0:02:51]} 9. f4 {[%clk 0:02:56]}  Qb6+ {[%clk 0:02:41]} 10. Kh1 {[%clk 0:02:53]}  Ng4 {[%clk 0:02:40]} 11. d4 {[%clk 0:02:29]}  a5 {[%clk 0:02:23]} 12. h3 {[%clk 0:02:24]}  Ngf6 {[%clk 0:02:23]} 13. Be3 {[%clk 0:02:14]}  Bb7 {[%clk 0:02:14]} 14. Bg1 {[%clk 0:02:08]}  Qc7 {[%clk 0:02:08]} 15. g4 {[%clk 0:02:03]}  b4 {[%clk 0:02:07]} 16. Nb1 {[%clk 0:01:55]}  exd4 {[%clk 0:01:48]} 17. Nxd4 {[%clk 0:01:53]}  c5 {[%clk 0:01:46]} 18. Nf5 {[%clk 0:01:53]}  Rfe8 {[%clk 0:01:47]} 19. Nd2 {[%clk 0:01:46]}  Bf8 {[%clk 0:01:44]} 20. Ng3 {[%clk 0:01:44]}  h6 {[%clk 0:01:25]} 21. h4 {[%clk 0:01:16]}  c4 {[%clk 0:01:00]} 22. c3 {[%clk 0:01:07]}  bxc3 {[%clk 0:00:51]} 23. bxc3 {[%clk 0:01:08]}  Nc5 {[%clk 0:00:52]} 24. Bxc5 {[%clk 0:00:41]}  Qxc5 {[%clk 0:00:48]} 25. g5 {[%clk 0:00:42]}  hxg5 {[%clk 0:00:47]} 26. hxg5 {[%clk 0:00:40]}  Nd7 {[%clk 0:00:43]} 27. Qg4 {[%clk 0:00:34]}  Rad8 {[%clk 0:00:31]} 28. a4 {[%clk 0:00:30]}  g6 {[%clk 0:00:24]} 29. Rae1 {[%clk 0:00:28]}  Bg7 {[%clk 0:00:23]} 30. Nb1 {[%clk 0:00:21]}  Bc6 {[%clk 0:00:21]} 31. Qh4 {[%clk 0:00:14]}  Bxa4 {[%clk 0:00:21]} 32. f5 {[%clk 0:00:14]}  Ne5 {[%clk 0:00:19]} 33. f6 {[%clk 0:00:13]}  Bh8 {[%clk 0:00:13]} 34. Rf4 {[%clk 0:00:10]}  Nd7 {[%clk 0:00:06]} 35. Ref1 {[%clk 0:00:06]}  Bc2 {[%clk 0:00:05]} 36. Nd2 {[%clk 0:00:05]}  d5 {[%clk 0:00:05]} 37. exd5 {[%clk 0:00:04]}  Re3 {[%clk 0:00:06]} 38. Qh2 {[%clk 0:00:03]}  Qd6 {[%clk 0:00:02]} 39. Rh4 {[%clk 0:00:03]}  Bxf6 {[%clk 0:00:03]} 40. gxf6 {[%clk 0:00:03]}  Nxf6 {[%clk 0:00:04]} 41. Rh8+ {[%clk 0:00:04]}  Kg7 {[%clk 0:00:05]} 42. Qh6# {[%clk 0:00:04]} 1-0


[Site "https://www.chess.com"]

[Event "Titled Tuesday Blitz February 01 B 2022"]
[White "Salinas Herrera, Pablo"]
[Black "Praggnanandhaa R"]
[WhiteFideId "3407128"]
[BlackFideId "25059530"]
[WhiteElo "2541"]
[BlackElo "2599"]
[Result "1-0"]
[Round "07"]
[TimeControl "180+1"]
[Date "2022.02.01"]
[WhiteClock "0:00:03"]
[BlackClock "0:00:03"]

1. d4 {[%clk 0:03:00]}  Nf6 {[%clk 0:02:58]} 2. Bf4 {[%clk 0:03:01]}  d5 {[%clk 0:02:54]} 3. e3 {[%clk 0:03:00]}  Bg4 {[%clk 0:02:50]} 4. Qd3 {[%clk 0:02:59]}  Nbd7 {[%clk 0:02:32]} 5. c4 {[%clk 0:02:57]}  e6 {[%clk 0:02:22]} 6. Qb3 {[%clk 0:02:57]}  Bd6 {[%clk 0:02:05]} 7. Bxd6 {[%clk 0:02:26]}  cxd6 {[%clk 0:02:00]} 8. Nc3 {[%clk 0:02:26]}  dxc4 {[%clk 0:01:50]} 9. Bxc4 {[%clk 0:02:26]}  O-O {[%clk 0:01:50]} 10. h3 {[%clk 0:02:25]}  Bh5 {[%clk 0:01:49]} 11. Nge2 {[%clk 0:02:24]}  a6 {[%clk 0:01:43]} 12. Nf4 {[%clk 0:02:22]}  b5 {[%clk 0:01:41]} 13. Bd3 {[%clk 0:02:22]}  Bg6 {[%clk 0:01:39]} 14. Nxg6 {[%clk 0:02:12]}  hxg6 {[%clk 0:01:40]} 15. a4 {[%clk 0:02:13]}  Qa5 {[%clk 0:01:31]} 16. O-O {[%clk 0:02:11]}  b4 {[%clk 0:01:31]} 17. Na2 {[%clk 0:02:05]}  Rab8 {[%clk 0:01:31]} 18. Rac1 {[%clk 0:02:04]}  Qb6 {[%clk 0:01:22]} 19. Rc2 {[%clk 0:01:59]}  e5 {[%clk 0:01:21]} 20. dxe5 {[%clk 0:01:53]}  dxe5 {[%clk 0:01:17]} 21. Rfc1 {[%clk 0:01:53]}  e4 {[%clk 0:00:55]} 22. Bf1 {[%clk 0:01:52]}  a5 {[%clk 0:00:55]} 23. Rc6 {[%clk 0:01:49]}  Qa7 {[%clk 0:00:51]} 24. Bb5 {[%clk 0:01:47]}  Ne5 {[%clk 0:00:49]} 25. Rc7 {[%clk 0:01:43]}  Qb6 {[%clk 0:00:49]} 26. Re7 {[%clk 0:01:34]}  Qd6 {[%clk 0:00:48]} 27. Ra7 {[%clk 0:01:27]}  Rbc8 {[%clk 0:00:41]} 28. Rd1 {[%clk 0:01:27]}  Qb6 {[%clk 0:00:38]} 29. Ra6 {[%clk 0:01:27]}  Qc5 {[%clk 0:00:37]} 30. Rxa5 {[%clk 0:01:22]}  Rfd8 {[%clk 0:00:36]} 31. Rf1 {[%clk 0:01:08]}  Nf3+ {[%clk 0:00:35]} 32. gxf3 {[%clk 0:00:37]}  exf3 {[%clk 0:00:34]} 33. Kh2 {[%clk 0:00:12]}  Qe5+ {[%clk 0:00:33]} 34. Kh1 {[%clk 0:00:11]}  Qh5 {[%clk 0:00:17]} 35. Kh2 {[%clk 0:00:12]}  Ng4+ {[%clk 0:00:15]} 36. Kg3 {[%clk 0:00:12]}  Ne5 {[%clk 0:00:14]} 37. Rg1 {[%clk 0:00:03]}  Rd2 {[%clk 0:00:14]} 38. Qxb4 {[%clk 0:00:02]}  Qg5+ {[%clk 0:00:14]} 39. Kh2 {[%clk 0:00:03]}  Rxf2+ {[%clk 0:00:13]} 40. Kh1 {[%clk 0:00:04]}  Rg2 {[%clk 0:00:11]} 41. Qe1 {[%clk 0:00:01]}  f2 {[%clk 0:00:06]} 42. Qxf2 {[%clk 0:00:02]}  Rxg1+ {[%clk 0:00:04]} 43. Qxg1 {[%clk 0:00:01]}  Qf5 {[%clk 0:00:05]} 44. Qf1 {[%clk 0:00:01]}  Qe4+ {[%clk 0:00:05]} 45. Qg2 {[%clk 0:00:02]}  Qxe3 {[%clk 0:00:05]} 46. Bf1 {[%clk 0:00:02]}  Nf3 {[%clk 0:00:04]} 47. Rd5 {[%clk 0:00:02]}  Ne1 {[%clk 0:00:04]} 48. Qh2 {[%clk 0:00:01]}  Qe4+ {[%clk 0:00:03]} 49. Bg2 {[%clk 0:00:01]}  Qb1 {[%clk 0:00:04]} 50. Qg1 {[%clk 0:00:01]}  Rc2 {[%clk 0:00:02]} 51. Rd8+ {[%clk 0:00:02]}  Kh7 {[%clk 0:00:03]} 52. Nc3 {[%clk 0:00:03]}  Qxb2 {[%clk 0:00:02]} 53. Qxe1 {[%clk 0:00:02]}  Rxg2 {[%clk 0:00:03]} 54. Qh4# {[%clk 0:00:03]} 1-0


[Site "https://www.chess.com"]

[Event "Titled Tuesday Blitz February 01 B 2022"]
[White "Shahade, Gregory"]
[Black "Svane, Frederik"]
[WhiteFideId "2009064"]
[BlackFideId "12923044"]
[WhiteElo "2689"]
[BlackElo "2459"]
[Result "0-1"]
[Round "07"]
[TimeControl "180+1"]
[Date "2022.02.01"]
[WhiteClock "0:00:18"]
[BlackClock "0:00:06"]

1. e4 {[%clk 0:02:59]}  c5 {[%clk 0:03:00]} 2. Nf3 {[%clk 0:02:59]}  g6 {[%clk 0:03:00]} 3. d4 {[%clk 0:02:59]}  cxd4 {[%clk 0:03:00]} 4. Nxd4 {[%clk 0:02:59]}  Nc6 {[%clk 0:03:00]} 5. c4 {[%clk 0:02:59]}  Nf6 {[%clk 0:03:01]} 6. Nc3 {[%clk 0:02:59]}  d6 {[%clk 0:03:01]} 7. f3 {[%clk 0:02:57]}  Nxd4 {[%clk 0:03:01]} 8. Qxd4 {[%clk 0:02:58]}  Bg7 {[%clk 0:03:02]} 9. Be3 {[%clk 0:02:57]}  O-O {[%clk 0:03:02]} 10. Qd2 {[%clk 0:02:57]}  a6 {[%clk 0:02:51]} 11. Be2 {[%clk 0:02:48]}  Qa5 {[%clk 0:02:37]} 12. O-O {[%clk 0:02:46]}  Bd7 {[%clk 0:02:38]} 13. c5 {[%clk 0:02:34]}  Rfd8 {[%clk 0:02:22]} 14. cxd6 {[%clk 0:02:24]}  exd6 {[%clk 0:01:49]} 15. Qxd6 {[%clk 0:02:05]}  Bb5 {[%clk 0:01:41]} 16. Bb6 {[%clk 0:01:31]}  Rxd6 {[%clk 0:01:26]} 17. Bxa5 {[%clk 0:01:31]}  Rd2 {[%clk 0:01:07]} 18. Nxb5 {[%clk 0:01:05]}  Rxe2 {[%clk 0:01:07]} 19. Nc7 {[%clk 0:01:05]}  Rc8 {[%clk 0:00:52]} 20. Rf2 {[%clk 0:01:05]}  Rxf2 {[%clk 0:00:45]} 21. Kxf2 {[%clk 0:01:06]}  b6 {[%clk 0:00:44]} 22. Bxb6 {[%clk 0:00:58]}  Rb8 {[%clk 0:00:45]} 23. Be3 {[%clk 0:00:41]}  Rxb2+ {[%clk 0:00:44]} 24. Kg1 {[%clk 0:00:41]}  h5 {[%clk 0:00:34]} 25. Nxa6 {[%clk 0:00:37]}  Re2 {[%clk 0:00:32]} 26. Bd4 {[%clk 0:00:33]}  Rd2 {[%clk 0:00:30]} 27. Be5 {[%clk 0:00:25]}  h4 {[%clk 0:00:30]} 28. h3 {[%clk 0:00:24]}  Nh5 {[%clk 0:00:29]} 29. Bxg7 {[%clk 0:00:24]}  Kxg7 {[%clk 0:00:28]} 30. Nc5 {[%clk 0:00:24]}  Nf4 {[%clk 0:00:27]} 31. a4 {[%clk 0:00:24]}  Rxg2+ {[%clk 0:00:25]} 32. Kh1 {[%clk 0:00:24]}  Rg3 {[%clk 0:00:16]} 33. a5 {[%clk 0:00:24]}  Rxh3+ {[%clk 0:00:11]} 34. Kg1 {[%clk 0:00:24]}  Rg3+ {[%clk 0:00:10]} 35. Kf2 {[%clk 0:00:22]}  Rg2+ {[%clk 0:00:11]} 36. Ke3 {[%clk 0:00:23]}  g5 {[%clk 0:00:08]} 37. a6 {[%clk 0:00:23]}  Re2+ {[%clk 0:00:08]} 38. Kd4 {[%clk 0:00:22]}  Rd2+ {[%clk 0:00:09]} 39. Ke5 {[%clk 0:00:20]}  Kg6 {[%clk 0:00:06]} 40. a7 {[%clk 0:00:18]}  f6# {[%clk 0:00:06]} 0-1


[Site "https://www.chess.com"]